bitfinex-derivatives/quotes_ETHF0:USTF0_20251005
["timestamp","ask_amount","ask_price","bid_price","bid_amount"]
[1759638123036,0.7248,4547.9,4547.8,0.39563]
[1759638123243,1.2395,4547.9,4547.8,2.17125851]
[1759638123942,1.2395,4547.9,4547.8,1.77562851]
[1759638124142,1.2395,4547.9,4547.8,2.17125851]
[1759638125446,0.72707116,4548.0,4547.9,0.9956]
[1759638125640,0.94707116,4548.0,4547.9,0.9956]
[1759638125838,1.24177116,4548.0,4547.9,0.9956]
[1759638126533,1.41977116,4548.0,4547.9,0.5631]
[1759638127040,1.41977116,4548.0,4547.8,0.78002851]
[1759638127246,1.0195,4547.9,4547.8,5.92882639]
[1759638127539,1.41512,4547.9,4547.8,5.92882639]
[1759638127744,1.41512,4547.9,4547.8,0.78002851]
[1759638130144,1.41512,4547.9,4547.6,0.39564]
[1759638130347,0.4252,4547.8,4547.6,5.54443788]
[1759638130643,0.5943,4547.7,4547.6,5.82563788]
[1759638130846,0.42747116,4548.0,4547.9,0.39562]
[1759638131035,0.42747116,4548.0,4547.9,6.54001788]
[1759638131036,0.00227116,4548.0,4547.9,6.54001788]
[1759638131239,0.22227116,4548.0,4547.9,6.54001788]
[1759638132543,1.41977116,4548.0,4547.9,6.14439788]
[1759638132748,1.41977116,4548.0,4547.9,0.2812]
[1759638133146,1.41977116,4548.0,4547.9,0.7137]
[1759638133643,1.41977116,4548.0,4547.9,6.92442639]
[1759638133644,0.00227116,4548.0,4547.9,6.92442639]
[1759638134047,0.00227116,4548.0,4547.9,7.71411464]
[1759638134846,0.72707116,4548.0,4547.9,6.92442639]
[1759638136844,0.00227116,4548.0,4547.9,6.92442639]
[1759638137047,0.00227116,4548.0,4547.9,7.71411464]
[1759638137249,0.00227116,4548.0,4547.9,6.92442639]
[1759638137851,0.00227116,4548.0,4547.9,7.71411464]
[1759638139353,0.00227116,4548.0,4547.9,6.92442639]
[1759638139949,0.00227116,4548.0,4547.9,7.71411464]
[1759638140449,0.00227116,4548.0,4547.9,6.92442639]
[1759638140754,0.00227116,4548.0,4547.9,7.71411464]
[1759638140956,0.00227116,4548.0,4547.9,6.92442639]
[1759638141251,0.30187116,4548.0,4547.9,6.92442639]
[1759638141555,0.72707116,4548.0,4547.9,6.92442639]
[1759638142556,1.19977116,4548.0,4547.9,1.77562851]
[1759638142855,1.19977116,4548.0,4547.8,0.39563]
[1759638143050,1.19977116,4548.0,4547.9,1.06122851]
[1759638143450,1.19977116,4548.0,4547.9,1.34312851]
[1759638143658,1.19977116,4548.0,4547.9,0.78002851]
[1759638144653,0.5943,4547.7,4547.6,0.2812]
[1759638144850,0.39563,4547.9,4547.5,3.489]
[1759638144851,0.4252,4547.6,4547.5,3.489]
[1759638145158,1.2395,4547.6,4547.5,4.26902851]
[1759638145560,1.2395,4547.6,4547.5,4.98342851]
[1759638148257,1.2395,4547.6,4547.5,3.2078]
[1759638148664,1.2395,4547.6,4547.5,3.489]
[1759638149857,1.2395,4547.6,4547.5,3.9215]
[1759638150368,1.2395,4547.6,4547.5,3.489]
[1759638150561,1.2395,4547.6,4547.4,0.39828205]
[1759638150562,0.178,4547.5,4547.4,0.00262205]
[1759638150758,1.2009,4547.5,4547.4,0.00262205]
[1759638152658,7.15859119,4547.5,4547.4,0.00262205]
[1759638152968,7.15859119,4547.5,4546.7,0.39572]
[1759638152969,0.9972,4546.8,4546.7,0.78968825]
[1759638153165,0.4435,4546.7,4546.5,3.60354]
[1759638153363,0.9972,4546.6,4546.5,4.60904]
[1759638153763,0.9972,4546.6,4546.5,4.61064219]
[1759638154660,0.9972,4546.6,4546.5,3.20940219]
[1759638155880,0.9972,4546.6,4546.5,3.48330219]
[1759638156272,0.9972,4546.6,4546.5,0.27550219]
[1759638156469,0.9972,4546.6,4546.5,0.00160219]
[1759638161869,0.39581,4545.8,4545.2,4.43888825]
[1759638162066,0.7196,4545.6,4545.5,6.15429788]
[1759638162565,0.9972,4545.6,4545.5,6.15429788]
[1759638162769,0.9972,4545.6,4545.5,6.15596457]
[1759638166974,0.7196,4545.6,4545.5,6.15596457]
[1759638167179,0.22,4545.7,4545.6,1.40132]
[1759638167382,0.22,4545.7,4545.6,6.55011788]
[1759638167571,0.22,4545.7,4545.6,1.40132]
[1759638167772,0.9972,4546.3,4546.2,1.0055]
[1759638167977,1.2172,4546.3,4546.2,1.0055]
[1759638168776,0.9396,4546.3,4546.2,1.0055]
[1759638168981,0.4435,4546.3,4546.2,1.0055]
[1759638169178,0.9396,4546.3,4546.2,1.0055]
[1759638170981,1.2172,4546.3,4546.2,1.0055]
[1759638172478,4.205,4546.8,4546.7,0.66963]
[1759638172679,1.2172,4546.8,4546.7,1.40123]
[1759638173079,0.9972,4546.8,4546.7,1.40123]
[1759638173381,0.7196,4547.0,4546.9,1.0055]
[1759638173678,0.4961,4547.0,4546.9,6.55000788]
[1759638173877,0.2761,4547.5,4547.4,1.40117]
[1759638174079,0.4961,4547.5,4547.4,6.54996788]
[1759638174380,0.9396,4547.5,4547.4,6.54996788]
[1759638174587,0.7196,4547.5,4547.4,6.54996788]
[1759638174884,0.9396,4547.5,4547.4,6.54996788]
[1759638175183,1.2172,4547.5,4547.4,6.54996788]
[1759638175579,0.9396,4547.5,4547.4,6.54996788]
[1759638175978,0.22,4547.5,4547.4,6.54996788]
[1759638176279,1.2172,4547.5,4547.4,6.15429788]
[1759638176679,1.385,4547.5,4547.4,6.15429788]
[1759638178080,1.2172,4547.5,4547.4,6.15429788]
[1759638180383,0.9396,4547.5,4547.4,6.15429788]
[1759638181882,0.00227116,4548.0,4547.9,1.0055]
[1759638182082,0.22227116,4548.0,4547.9,6.15429788]
[1759638183678,0.22227116,4548.0,4547.9,9.36209788]
[1759638185895,0.7009,4549.1,4549.0,0.9923]
[1759638186092,1.1945,4549.1,4549.0,0.9923]
[1759638186890,1.19642393,4549.1,4549.0,0.99449719]
[1759638187994,0.64172393,4549.1,4549.0,0.99449719]
[1759638188590,0.92282393,4549.1,4549.0,0.99449719]
[1759638190494,1.19642393,4549.1,4549.0,0.00219719]
[1759638190786,2.15411512,4549.1,4549.0,0.00219719]
[1759638191582,1.19642393,4549.1,4549.0,0.00219719]
[1759638192887,1.19642393,4549.1,4549.0,0.27979719]
[1759638193895,1.19642393,4549.1,4549.0,0.99449719]
[1759638195895,0.97642393,4549.1,4549.0,1.39002719]
[1759638196201,1.19642393,4549.1,4549.0,1.39002719]
[1759638196694,1.19642393,4549.1,4549.0,0.99449719]
[1759638198497,1.19642393,4549.1,4549.0,0.00219719]
[1759638201587,0.1716,4547.0,4546.9,1.42113874]
[1759638201787,1.3051,4547.0,4546.9,6.14109788]
[1759638201992,1.59926218,4547.0,4546.9,6.14109788]
[1759638202189,1.64766218,4547.0,4546.9,6.14109788]
[1759638202396,2.04336218,4547.0,4546.9,6.14109788]
[1759638202698,2.04336218,4547.0,4546.9,6.14360123]
[1759638203197,1.64766218,4547.0,4546.9,6.14360123]
[1759638210502,1.64766218,4547.0,4546.9,5.42890123]
[1759638210705,0.4095,4545.8,4545.7,0.2893]
[1759638210911,0.22,4545.8,4545.7,1.35760579]
[1759638211199,0.22,4545.8,4545.7,6.13663946]
[1759638211401,0.1716,4547.0,4546.3,0.39576]
[1759638211602,0.6834,4546.7,4546.6,5.38921367]
[1759638211907,0.6834,4546.7,4546.6,1.006]
[1759638213308,0.9838,4546.7,4546.6,0.577]
[1759638215504,0.9838,4546.7,4546.0,0.1187]
[1759638215505,0.4428,4545.4,4545.3,0.2789]
[1759638215714,2.42054579,4545.4,4545.3,0.9911]
[1759638216405,2.42054579,4545.4,4545.3,0.99338933]
[1759638217403,2.20054579,4545.4,4545.3,0.99338933]
[1759638217609,2.42054579,4545.4,4545.3,0.99338933]
[1759638218799,2.80531158,4545.4,4545.0,0.179]
[1759638219004,0.5813,4544.5,4544.4,0.9911]
[1759638219303,1.2441,4544.5,4544.4,0.9911]
[1759638219903,1.2441,4544.5,4544.4,0.99276627]
[1759638221305,9.89901,4544.1,4541.9,3.2078]
[1759638221510,1.2006,4542.5,4542.4,3.63111367]
[1759638221705,1.59674,4542.0,4541.9,0.2789]
[1759638221899,3.37795158,4542.0,4541.9,0.2789]
[1759638222104,0.4428,4541.8,4541.0,0.179]
[1759638222304,1.2441,4541.7,4541.6,0.2789]
[1759638222707,0.4428,4541.6,4541.0,0.57796442]
[1759638222907,0.2968,4541.1,4541.0,0.56354442]
[1759638223213,1.74020579,4541.1,4541.0,0.56354442]
[1759638223412,1.74020579,4541.1,4541.0,4.74227809]
[1759638223814,1.74020579,4541.1,4541.0,4.34605809]
[1759638224216,0.9596,4541.1,4541.0,4.34605809]
[1759638225218,1.2441,4541.1,4541.0,4.34605809]
[1759638225413,0.9596,4541.1,4541.0,4.34605809]
[1759638225613,0.5168,4541.1,4541.0,4.34605809]
[1759638225817,0.22,4541.1,4541.0,4.52505809]
[1759638226526,3.6506,4541.5,4541.4,0.9911]
[1759638226711,3.8716,4541.5,4541.4,4.34331367]
[1759638226911,4.4529,4541.5,4541.4,3.91301367]
[1759638227110,4.6294,4541.5,4541.0,0.43304442]
[1759638227311,1.0241,4541.1,4541.0,0.00274442]
[1759638227512,1.2451,4541.1,4541.0,0.00274442]
[1759638227721,1.64132,4541.1,4541.0,0.00274442]
[1759638230111,1.2451,4541.1,4541.0,0.00274442]
[1759638230316,1.2451,4541.1,4541.0,3.63385809]
[1759638231414,1.2451,4541.1,4541.0,3.35495809]
[1759638232521,1.2451,4541.1,4541.0,0.00274442]
[1759638232714,1.2451,4541.1,4541.0,0.28164442]
[1759638232913,1.2451,4541.1,4541.0,4.34605809]
[1759638234414,0.7396,4541.1,4541.0,4.34605809]
[1759638234620,4.1239,4541.5,4541.4,0.9911]
[1759638234817,4.3449,4541.5,4541.4,0.9911]
[1759638235018,4.6294,4541.5,4541.4,0.9911]
[1759638235922,4.6294,4541.5,4541.4,0.5608]
[1759638241023,4.4084,4541.5,4541.4,4.34331367]
[1759638241327,3.4288,4541.5,4541.4,4.34331367]
[1759638241626,3.7256,4541.5,4541.4,4.34331367]
[1759638241824,4.1684,4541.5,4541.4,4.34331367]
[1759638244226,3.7256,4541.5,4541.4,4.34331367]
[1759638244728,0.41650393,4541.8,4541.7,0.98036]
[1759638244928,0.92730393,4541.8,4541.7,4.74747367]
[1759638245128,1.40548172,4541.8,4541.7,4.35131367]
[1759638245427,1.18448172,4541.8,4541.7,4.35131367]
[1759638245629,1.40548172,4541.8,4541.7,4.35131367]
[1759638246332,2.18785002,4541.8,4541.7,4.35131367]
[1759638247226,1.77305002,4541.8,4541.7,4.35131367]
[1759638248528,0.70088172,4541.8,4541.7,4.35131367]
[1759638248724,1.48325002,4541.8,4541.7,4.35131367]
[1759638249828,1.26225002,4541.8,4541.7,4.35131367]
[1759638250132,1.48325002,4541.8,4541.7,4.35131367]
[1759638250625,0.47988172,4541.8,4541.7,4.35131367]
[1759638250828,0.47988172,4541.8,4541.7,8.34148197]
[1759638250829,0.70088172,4541.8,4541.7,8.34148197]
[1759638251029,0.4148,4542.4,4542.3,1.39521]
[1759638251330,0.7823683,4542.8,4542.6,1.39518]
[1759638251331,0.7046,4542.7,4542.6,1.39518]
[1759638251532,0.9256,4542.7,4542.6,1.39518]
[1759638251925,0.92773946,4542.7,4542.6,1.39518]
[1759638253524,0.70673946,4542.7,4542.6,1.39518]
[1759638253730,0.92773946,4542.7,4542.6,1.39518]
[1759638254331,0.00213946,4542.7,4542.6,1.39518]
[1759638254530,0.22313946,4542.7,4542.6,1.39518]
[1759638257639,0.00213946,4542.7,4542.6,6.39518]
[1759638264146,0.00213946,4542.7,4542.6,6.61618]
[1759638265547,0.00213946,4542.7,4542.6,7.3985483]
[1759638266151,0.00213946,4542.7,4542.6,6.61618]
[1759638268950,0.00213946,4542.7,4542.6,7.3985483]
[1759638270349,0.29193946,4542.7,4542.6,6.61618]
[1759638270544,0.99083946,4542.7,4542.6,1.39519]
[1759638273845,0.99083946,4542.7,4542.6,0.69779]
[1759638274052,0.99083946,4542.7,4542.6,0.68799]
[1759638274268,0.99083946,4542.7,4542.6,1.12899]
[1759638274445,0.99083946,4542.7,4542.6,1.40759]
[1759638276947,0.163,4542.5,4542.2,3.2078]
[1759638277141,0.4494,4542.3,4542.2,3.2078]
[1759638277347,1.0256,4542.6,4542.5,0.2919]
[1759638277553,1.0256,4542.6,4542.5,1.0115]
[1759638278353,1.0256,4542.6,4542.5,0.5705]
[1759638278861,1.0256,4542.6,4542.5,1.0115]
[1759638279849,1.0256,4542.6,4542.5,0.2919]
[1759638280150,1.0256,4542.6,4542.4,0.3961]
[1759638280351,0.4494,4542.4,4542.2,3.60392]
[1759638280552,1.0256,4542.3,4542.2,3.89582]
[1759638281656,1.0256,4542.3,4542.2,4.61542]
[1759638282055,1.0256,4542.3,4542.2,3.2078]
[1759638282261,1.0256,4542.3,4542.2,4.2193]
[1759638282854,1.0256,4542.3,4542.2,3.7783]
[1759638283357,0.163,4542.5,4542.2,4.2193]
[1759638283563,0.00213946,4542.7,4542.6,1.40759]
[1759638283765,1.0256,4544.3,4544.2,0.68784]
[1759638283963,1.5775455,4544.3,4544.2,0.68784]
[1759638284363,1.5775455,4544.3,4544.2,1.40744]
[1759638284568,1.7245455,4544.3,4544.2,1.40744]
[1759638284870,0.77441568,4544.3,4544.2,1.40946602]
[1759638285169,0.74587018,4544.3,4544.2,1.40946602]
[1759638285867,0.74587018,4544.3,4544.2,4.76167969]
[1759638286569,0.29647018,4544.3,4544.2,4.76167969]
[1759638286770,0.00167018,4544.3,4544.2,4.76167969]
[1759638287270,0.00167018,4544.3,4544.2,7.96947969]
[1759638293072,0.00167018,4544.3,4544.2,8.92899278]
[1759638293376,0.221,4544.6,4544.5,1.58622]
[1759638293675,0.221,4544.6,4544.5,4.93843367]
[1759638296174,1.2466,4544.6,4544.5,4.31863367]
[1759638296471,1.2466,4544.6,4544.5,4.48103367]
[1759638296677,1.2466,4544.6,4544.5,4.75963367]
[1759638297469,1.2488031,4544.6,4544.5,4.75963367]
[1759638298275,0.2232031,4544.6,4544.5,4.93843367]
[1759638298469,0.9674031,4544.6,4544.5,4.93843367]
[1759638298672,0.9674031,4544.6,4544.5,1.40742]
[1759638300577,0.2232031,4544.6,4544.5,1.58622]
[1759638301777,3.76664,4545.5,4544.9,1.0115]
[1759638301778,0.163,4545.5,4544.9,1.0115]
[1759638301986,0.7442,4545.4,4545.3,1.40735]
[1759638302875,0.29722071,4545.4,4545.3,1.40735]
[1759638303079,0.00242071,4545.4,4545.3,1.40735]
[1759638304583,0.22,4545.8,4545.7,0.39582]
[1759638304775,0.9383,4546.4,4546.3,0.96256]
[1759638304979,0.9383,4546.4,4546.3,1.36346]
[1759638305384,1.205,4546.4,4546.3,1.36346]
[1759638305585,1.20718499,4546.4,4546.3,1.36346]
[1759638306080,0.00218499,4546.4,4546.3,1.36346]
[1759638306287,0.4499,4547.0,4546.9,1.0812]
[1759638306480,0.4499,4547.0,4546.2,3.2078]
[1759638306481,1.1511,4547.0,4546.7,0.39572]
[1759638306680,1.1511,4546.5,4546.4,0.2846]
[1759638307180,1.15302694,4546.5,4546.4,0.2846]
[1759638308581,0.5505,4546.2,4546.1,0.68037]
[1759638308775,0.985,4546.2,4546.1,0.68037]
[1759638308980,0.985,4546.2,4546.1,0.2846]
[1759638310486,0.985,4546.2,4545.8,0.4009]
[1759638310687,0.985,4545.9,4545.8,0.2846]
[1759638310989,0.2838,4545.4,4545.3,1.36355]
[1759638311189,0.7183,4545.4,4545.3,1.36355]
[1759638311591,0.7183,4545.7,4545.6,0.9677]
[1759638311887,0.7183,4545.7,4545.6,1.36352]
[1759638312287,0.985,4545.7,4545.6,1.36352]
[1759638312884,0.985,4545.7,4545.6,0.68042]
[1759638313490,0.985,4545.7,4545.6,1.36352]
[1759638314891,0.2838,4545.7,4545.6,4.57132]
[1759638315093,0.8844,4546.0,4545.9,1.3635]
[1759638315389,0.7183,4546.0,4545.9,1.3635]
[1759638317278,0.22,4546.1,4546.0,0.1719]
[1759638317484,0.22,4546.1,4546.0,4.49181367]
[1759638317687,0.22,4546.1,4546.0,1.1396]
[1759638318391,0.9383,4546.1,4546.0,1.1396]
[1759638318592,0.9383,4546.1,4546.0,0.9677]
[1759638322000,0.00192694,4546.5,4546.4,0.9677]
[1759638322299,0.00192694,4546.5,4546.4,4.31991367]
[1759638328298,0.00192694,4546.5,4546.4,7.52771367]
[1759638330297,0.00192694,4546.5,4546.4,8.30829423]
[1759638330494,0.98692694,4546.5,4546.4,4.31991367]
[1759638332296,1.46482934,4546.5,4546.4,4.31991367]
[1759638334086,0.98692694,4546.5,4546.4,4.31991367]
[1759638334291,1.46523159,4546.5,4546.4,4.31991367]
[1759638335598,1.46523159,4546.5,4546.4,0.9677]
[1759638340099,0.98692694,4546.5,4546.4,0.9677]
[1759638341204,0.9488,4546.0,4545.9,0.96479]
[1759638341899,0.9488,4546.0,4545.9,1.39569]
[1759638342096,0.9488,4546.0,4545.9,0.9999]
[1759638342702,1.50488056,4546.0,4545.7,0.82672]
[1759638342899,0.9488,4545.8,4545.7,0.7139]
[1759638343098,0.9488,4545.8,4545.7,0.283]
[1759638343298,0.9488,4545.8,4545.7,0.7139]
[1759638345309,0.9488,4545.8,4545.7,0.9999]
[1759638347904,0.9488,4545.8,4545.0,0.4309]
[1759638347905,0.2743,4545.1,4545.0,0.4309]
[1759638348105,0.175,4545.0,4544.6,0.4309]
[1759638348310,0.9488,4544.7,4544.6,0.7139]
[1759638348612,1.1688,4544.7,4544.6,0.7139]
[1759638353006,1.1688,4544.7,4544.6,0.9999]
[1759638353209,0.22,4544.7,4544.6,1.78048056]
[1759638357715,0.6745,4545.7,4545.6,0.9999]
[1759638357918,0.8945,4545.7,4545.6,0.9999]
[1759638359014,0.495,4545.7,4545.6,0.9999]
[1759638359220,0.6745,4545.7,4545.6,0.9999]
[1759638359517,0.22,4545.7,4545.6,0.9999]
[1759638360905,0.3995,4546.1,4545.6,0.569]
[1759638361116,0.3995,4546.4,4546.0,1.52308056]
[1759638361313,0.275,4546.2,4546.1,4.35211367]
[1759638361513,0.275,4546.2,4546.1,0.9999]
[1759638361514,0.9488,4546.2,4546.1,0.9999]
[1759638361820,0.9488,4546.2,4546.1,0.7139]
[1759638362326,0.9488,4546.2,4546.1,0.283]
[1759638362524,0.3995,4546.1,4545.6,0.4309]
[1759638362724,0.3995,4545.2,4544.8,0.4309]
[1759638362920,0.9507,4544.9,4544.8,0.9727]
[1759638363425,0.9507,4544.9,4544.8,1.75328056]
[1759638364015,0.4867,4545.1,4545.0,1.1403]
[1759638364220,0.4867,4545.1,4545.0,4.49251367]
[1759638364824,0.4867,4545.1,4545.0,5.27309423]
[1759638365829,0.22,4545.1,4545.0,5.27309423]
[1759638376731,1.1707,4545.1,4545.0,0.9727]
[1759638376935,1.1707,4545.1,4545.0,1.1403]
[1759638377234,0.7524,4545.1,4545.0,1.1403]
[1759638377938,0.4867,4545.1,4545.0,1.1403]
[1759638378840,0.22,4545.1,4545.0,5.27309423]
[1759638380840,0.9507,4545.8,4545.7,1.36852]
[1759638381136,0.74741283,4545.8,4545.7,1.36852]
[1759638381341,0.74741283,4545.8,4545.7,2.14910056]
[1759638381736,1.16571283,4545.8,4545.7,2.14910056]
[1759638382445,0.48071283,4545.8,4545.7,5.50131423]
[1759638383543,0.74741283,4545.8,4545.7,5.50131423]
[1759638384234,0.74741283,4545.8,4545.7,4.72073367]
[1759638385641,0.48071283,4545.8,4545.7,4.72073367]
[1759638386246,0.48071283,4545.8,4545.7,5.50131423]
[1759638391853,0.8795,4546.3,4546.2,1.33527]
[1759638392044,1.3598332,4546.3,4546.2,1.33527]
[1759638392347,0.9620332,4546.3,4546.2,1.33527]
[1759638392749,0.7003332,4546.3,4546.2,4.68748367]
[1759638394845,1.3749332,4546.3,4546.2,4.29171367]
[1759638395644,0.9567332,4546.3,4546.2,4.29171367]
[1759638395846,0.7003332,4546.3,4546.2,4.29171367]
[1759638396248,0.22,4546.3,4546.2,4.29171367]
[1759638396741,0.70007101,4546.3,4546.2,4.29171367]
[1759638397951,0.22,4546.3,4546.2,4.29171367]
[1759638401452,0.69996366,4546.3,4546.2,4.29171367]
[1759638401647,1.64596366,4546.3,4546.2,4.29171367]
[1759638401842,1.64596366,4546.3,4545.4,3.2078]
[1759638402046,0.946,4545.9,4545.8,0.9435]
[1759638402250,0.946,4545.9,4545.8,1.3393]
[1759638407349,0.6746,4546.2,4546.1,1.33928]
[1759638407556,1.15466272,4546.2,4546.1,1.33928]
[1759638408451,0.22,4546.3,4546.1,0.93328]
[1759638408654,0.22,4546.3,4546.2,4.29571367]
[1759638408855,0.70009316,4546.3,4546.2,4.29571367]
[1759638409054,0.70009316,4546.3,4546.2,0.9435]
[1759638409447,0.70009316,4546.3,4546.2,4.29571367]
[1759638409954,0.22,4546.3,4546.2,4.29571367]
[1759638419060,0.00192694,4546.5,4546.2,4.29571367]
[1759638419260,0.00192694,4546.5,4546.4,4.29571367]
[1759638421056,0.48139529,4546.5,4546.4,4.29571367]
[1759638424063,0.00192694,4546.5,4546.4,4.29571367]
[1759638428460,0.00192694,4546.5,4546.4,4.51571367]
[1759638428662,0.2679,4547.5,4547.4,1.34977]
[1759638428859,0.6451,4547.5,4547.4,1.34977]
[1759638429059,1.12451298,4547.5,4547.4,1.34977]
[1759638429659,1.12721474,4547.5,4547.4,1.35170059]
[1759638429866,1.12721474,4547.5,4547.4,0.95603059]
[1759638430962,1.39231474,4547.5,4547.4,0.95603059]
[1759638432262,0.75001474,4547.5,4547.4,0.95603059]
[1759638432566,0.48211474,4547.5,4547.4,0.95603059]
[1759638433666,0.75001474,4547.5,4547.4,0.95603059]
[1759638434765,1.12721474,4547.5,4547.4,0.95603059]
[1759638436269,1.39231474,4547.5,4547.4,0.68543059]
[1759638436461,2.51796966,4547.5,4547.4,0.00193059]
[1759638438871,1.55981474,4547.5,4547.4,0.27363059]
[1759638439073,1.55981474,4547.5,4547.4,0.00193059]
[1759638440472,1.55981474,4547.5,4547.4,0.41373059]
[1759638440770,1.55981474,4547.5,4547.4,0.68543059]
[1759638442465,1.77981474,4547.5,4547.4,0.68543059]
[1759638443571,1.77981474,4547.5,4547.4,0.00193059]
[1759638443867,0.9102,4546.8,4546.7,1.07923]
[1759638444073,0.9102,4546.8,4546.7,0.6835]
[1759638444471,0.9102,4546.8,4546.7,4.03571367]
[1759638444874,0.9102,4546.8,4546.7,4.03746607]
[1759638446773,0.9102,4546.8,4546.7,0.0017524]
[1759638447076,1.38932866,4546.8,4546.7,0.0017524]
[1759638449078,0.74702866,4546.8,4546.7,0.9558524]
[1759638449979,1.12422866,4546.8,4546.7,0.9558524]
[1759638452584,1.38932866,4546.8,4546.7,0.9558524]
[1759638454577,1.38932866,4546.8,4546.7,0.6852524]
[1759638455781,1.38932866,4546.8,4546.7,0.0017524]
[1759638456383,1.38932866,4546.8,4546.7,0.3741524]
[1759638458694,1.38932866,4546.8,4546.7,0.6305524]
[1759638462284,1.38932866,4546.8,4546.7,0.0017524]
[1759638465101,1.38932866,4546.8,4546.7,0.3974824]
[1759638465504,1.38932866,4546.8,4546.7,0.0017524]
[1759638466004,1.38932866,4546.8,4546.7,0.3741524]
[1759638466597,1.38932866,4546.8,4546.7,0.6305524]
[1759638466797,1.38932866,4546.8,4546.7,0.8980524]
[1759638469003,1.38932866,4546.8,4546.7,4.25026607]
[1759638471496,1.38932866,4546.8,4546.7,3.98276607]
[1759638472501,1.38932866,4546.8,4546.7,3.72636607]
[1759638472807,1.38932866,4546.8,4546.7,0.0017524]
[1759638474002,4.59712866,4546.8,4546.7,0.0017524]
[1759638475907,0.5205,4546.0,4545.8,0.3958]
[1759638476209,1.62972866,4545.9,4545.8,0.9197]
[1759638476605,1.62972866,4545.9,4545.8,1.2921]
[1759638476910,1.62972866,4545.9,4545.8,1.29437222]
[1759638478306,1.1506,4545.9,4545.8,1.29437222]
[1759638478505,0.221,4545.9,4545.8,1.29437222]
[1759638479712,0.473,4545.9,4545.8,1.29437222]
[1759638479907,0.8821,4545.9,4545.8,1.29437222]
[1759638480207,1.1506,4545.9,4545.8,1.02687222]
[1759638480408,1.1506,4545.9,4545.8,0.00227222]
[1759638480617,2.40801625,4545.9,4545.8,0.00227222]
[1759638482306,2.40801625,4545.9,4545.8,0.63107222]
[1759638483112,2.40801625,4545.9,4545.8,0.00227222]
[1759638485314,2.40801625,4545.9,4545.8,0.64437222]
[1759638485919,1.62741067,4545.9,4545.8,0.91007222]
[1759638486110,0.94981067,4545.9,4545.8,0.91007222]
[1759638486610,3.4702,4546.3,4546.2,0.5107]
[1759638486811,4.1672266,4546.3,4546.2,4.26001367]
[1759638487011,4.5536266,4546.3,4546.2,4.26001367]
[1759638487211,4.5536266,4546.3,4546.2,4.65578367]
[1759638488922,1.3458266,4546.3,4546.2,4.65578367]
[1759638489417,0.9594266,4546.3,4546.2,4.65578367]
[1759638490118,0.6970266,4546.3,4546.2,4.65578367]
[1759638490317,1.6060266,4546.3,4546.2,4.26001367]
[1759638491016,1.6060266,4546.3,4546.2,4.65578367]
[1759638491911,0.6970266,4546.3,4546.2,4.65578367]
[1759638492906,0.221,4546.3,4546.2,4.65578367]
[1759638493318,0.69727579,4546.3,4546.2,4.65578367]
[1759638493918,0.221,4546.3,4546.2,4.65578367]
[1759638495318,3.8566,4546.9,4546.8,0.9078]
[1759638495516,4.5540009,4546.9,4546.8,0.9078]
[1759638495720,4.8142009,4546.9,4546.8,0.9078]
[1759638496019,1.6064009,4546.9,4546.8,0.9078]
[1759638499822,2.38700648,4546.9,4546.8,0.6421]
[1759638501215,0.5226,4546.7,4546.6,0.3971]
[1759638501420,1.3854009,4546.7,4546.6,0.3971]
[1759638502126,1.7811409,4546.7,4546.6,0.3971]
[1759638502326,1.7811409,4546.7,4546.1,0.78060558]
[1759638502520,1.30474,4546.7,4546.6,3.35221367]
[1759638502722,1.61620202,4546.7,4546.5,3.35221367]
[1759638502922,1.38586202,4546.6,4546.5,3.35221367]
[1759638503118,0.909,4546.4,4546.3,0.3971]
[1759638503327,1.60586202,4546.4,4546.3,0.6421]
[1759638506522,1.60586202,4546.4,4546.2,0.39576]
[1759638506726,1.38586202,4546.3,4546.2,3.35221367]
[1759638506926,2.1664676,4546.3,4546.2,3.35221367]
[1759638507225,1.7800676,4546.3,4546.0,0.79289]
[1759638507527,0.909,4546.1,4546.0,1.03789]
[1759638507731,1.129,4546.1,4546.0,1.03789]
[1759638507928,1.129,4546.1,4546.0,4.39010367]
[1759638508524,1.129,4546.1,4546.0,4.65580367]
[1759638509333,1.129,4546.1,4546.0,4.81060367]
[1759638510026,0.4824,4546.1,4546.0,4.81060367]
[1759638511631,0.22,4546.1,4546.0,4.81060367]
[1759638512037,0.22,4546.1,4546.0,5.59120925]
[1759638514528,0.22,4546.1,4546.0,8.79900925]
[1759638515531,1.1179,4546.1,4546.0,4.25871367]
[1759638515732,1.59504202,4546.1,4546.0,7.61431367]
[1759638516435,1.59504202,4546.1,4546.0,4.1143]
[1759638518937,1.59504202,4546.1,4546.0,7.46651367]
[1759638519836,1.59504202,4546.1,4546.0,7.61431367]
[1759638520036,1.59504202,4546.1,4546.0,4.2621]
[1759638520236,1.21044202,4546.1,4546.0,7.61431367]
[1759638520629,0.95264202,4546.1,4546.0,7.61431367]
[1759638521239,0.4755,4546.1,4546.0,7.61431367]
[1759638522338,0.22,4546.1,4546.0,7.61431367]
[1759638522740,0.6973199,4546.1,4546.0,7.61431367]
[1759638523132,0.9528199,4546.1,4546.0,7.61431367]
[1759638524435,0.6973199,4546.1,4546.0,7.61431367]
[1759638524630,0.22,4546.1,4546.0,7.61431367]
[1759638525234,0.69733591,4546.1,4546.0,7.61431367]
[1759638530847,1.59523591,4546.1,4546.0,7.61431367]
[1759638531151,1.59523591,4546.1,4546.0,7.46651367]
[1759638531552,1.59523591,4546.1,4546.0,7.61431367]
[1759638532245,1.59523591,4546.1,4546.0,3.4528]
[1759638532451,1.59523591,4546.1,4546.0,0.6193]
[1759638532746,0.8979,4545.9,4545.8,0.00227222]
[1759638532952,1.37523591,4545.9,4545.8,0.00227222]
[1759638533154,6.37523591,4545.9,4545.8,0.00227222]
[1759638538157,6.37523591,4545.9,4545.8,0.63197222]
[1759638538356,6.37523591,4545.9,4545.8,0.89637222]
[1759638538752,1.37523591,4545.9,4545.8,0.89637222]
[1759638538959,1.59523591,4545.9,4545.8,0.89637222]
[1759638541558,2.55350909,4545.9,4545.8,0.00227222]
[1759638548660,1.59523591,4545.9,4545.8,0.84447222]
[1759638548960,1.59523591,4545.9,4545.8,0.00227222]
[1759638550171,1.59523591,4545.9,4544.0,0.6016]
[1759638550172,0.8843,4544.1,4544.0,0.6016]